bitfinex/quotes_ETHUSD_20250724
["timestamp","ask_amount","ask_price","bid_price","bid_amount"]
[1753394306745,0.002,3729.6,3729.5,7.7038584]
[1753394307415,0.002,3729.6,3729.5,10.38518297]
[1753394308117,0.002,3729.6,3729.5,10.83838297]
[1753394308928,0.002,3729.6,3729.5,9.90928297]
[1753394309130,0.002,3729.6,3729.5,10.38518297]
[1753394309828,0.002,3729.6,3729.5,9.90928297]
[1753394310124,0.002,3729.6,3729.5,10.11705051]
[1753394310541,0.002,3729.6,3729.5,9.64115051]
[1753394311193,0.002,3729.6,3729.5,10.11705051]
[1753394311820,0.002,3729.6,3729.5,10.57025051]
[1753394312745,0.002,3729.6,3729.5,9.64115051]
[1753394313412,0.002,3729.6,3729.5,10.11705051]
[1753394313733,0.002,3729.6,3729.5,8.85875051]
[1753394314415,0.002,3729.6,3729.5,9.33465051]
[1753394314839,0.002,3729.6,3729.5,8.85875051]
[1753394315152,0.002,3729.6,3728.9,0.7715]
[1753394315352,4.241,3729.5,3728.9,0.7715]
[1753394315538,5.1877,3729.5,3728.9,0.7715]
[1753394315716,5.1877,3729.5,3728.9,3.4532314]
[1753394316537,0.9467,3729.5,3728.9,3.4532314]
[1753394316734,4.241,3729.4,3728.9,3.4532314]
[1753394316948,0.4765,3729.3,3728.9,3.4532314]
[1753394317128,4.241,3729.4,3728.9,0.7715]
[1753394317333,0.9467,3729.2,3728.8,5.68182323]
[1753394317531,4.241,3729.1,3728.8,5.68182323]
[1753394317737,4.241,3729.1,3728.8,3.0]
[1753394318114,4.241,3729.1,3728.7,6.04302594]
[1753394318322,5.1877,3729.1,3728.7,6.04302594]
[1753394318647,0.4765,3729.0,3728.7,8.72489668]
[1753394318845,4.241,3729.1,3728.6,0.7799]
[1753394319018,0.4702,3728.9,3728.6,0.001]
[1753394319216,4.241,3728.8,3728.6,0.001]
[1753394319416,5.1877,3728.8,3728.6,0.001]
[1753394319621,4.7112,3728.8,3728.6,0.001]
[1753394319826,0.4765,3728.7,3728.6,0.001]
[1753394324751,4.241,3728.8,3728.6,0.001]
[1753394325121,4.7175,3728.8,3728.7,0.1344]
[1753394325326,5.1542,3728.8,3728.7,0.1344]
[1753394327657,0.002,3729.6,3728.9,2.68175601]
[1753394327844,0.002,3729.6,3729.5,8.72435051]
[1753394328026,0.002,3729.6,3729.5,9.47595051]
[1753394328226,0.002,3729.6,3729.5,10.43175051]
[1753394329960,0.002,3729.6,3729.5,9.47595051]
[1753394330121,0.002,3729.6,3729.5,2.68132457]
[1753394330325,5.1509,3729.6,3728.7,6.83062594]
[1753394330525,0.8004,3729.4,3728.7,6.04302594]
[1753394330735,4.24,3729.3,3728.7,6.04302594]
[1753394331133,0.9089,3729.2,3728.7,6.04302594]
[1753394331334,0.9089,3729.1,3728.7,8.7249197]
[1753394331548,4.24,3729.0,3728.7,8.7249197]
[1753394331723,0.9089,3728.9,3728.7,8.7249197]
[1753394331926,0.9089,3728.9,3728.7,6.04302594]
[1753394332152,0.9089,3728.8,3728.7,6.04302594]
[1753394332356,4.7122,3729.0,3728.6,2.68295165]
[1753394332561,0.9089,3728.9,3728.6,2.68295165]
[1753394334459,0.4722,3728.8,3728.6,2.68295165]
[1753394334656,4.24,3728.7,3728.6,2.68295165]
[1753394334863,4.24,3728.7,3728.6,0.001]
[1753394336574,5.1489,3728.7,3728.6,0.001]
[1753394337961,5.1489,3728.7,3728.6,0.1354]
[1753394338465,2.68329752,3729.6,3728.6,0.1354]
[1753394338466,0.002,3729.6,3729.5,3.45312457]
[1753394338664,0.002,3729.6,3729.5,10.45195051]
[1753394338955,0.002,3729.6,3729.5,9.96795051]
[1753394339141,0.002,3729.6,3729.5,10.45195051]
[1753394340159,4.25,3729.6,3729.5,10.45195051]
[1753394340763,0.002,3729.6,3729.5,10.45195051]
[1753394340963,4.248,3729.6,3729.5,10.45195051]
[1753394341461,4.248,3729.6,3729.5,9.98015051]
[1753394341827,4.248,3729.6,3728.8,0.7845]
[1753394342032,4.248,3729.6,3728.8,2.68180761]
[1753394342033,3.59029525,3729.5,3728.8,2.68180761]
[1753394342562,0.9089,3729.4,3728.8,2.68180761]
[1753394342758,4.248,3729.6,3728.7,8.72492099]
[1753394342759,6.92647255,3729.3,3728.7,8.72492099]
[1753394343066,2.6832607,3729.6,3728.7,6.04302594]
[1753394343067,5.1539,3729.2,3728.7,6.04302594]
[1753394343231,1.7115,3729.1,3728.7,6.04302594]
[1753394343436,0.9089,3729.0,3728.7,6.04302594]
[1753394343641,4.7172,3728.9,3728.7,6.04302594]
[1753394343860,4.7172,3728.9,3728.6,0.001]
[1753394343861,0.9089,3728.8,3728.6,0.001]
[1753394344366,4.245,3728.9,3728.6,0.001]
[1753394344553,0.9089,3728.7,3728.6,0.001]
[1753394345336,0.8026,3730.2,3729.5,2.68132457]
[1753394345540,4.271,3729.8,3729.5,9.52105051]
[1753394345730,4.271,3729.8,3729.5,10.47685051]
[1753394347268,4.273,3729.6,3729.5,10.47685051]
[1753394348456,4.273,3729.6,3729.5,10.61125051]
[1753394349188,4.273,3729.6,3729.5,4.56822457]
[1753394351368,4.273,3729.6,3729.5,4.09642457]
[1753394351595,0.002,3729.6,3729.5,6.16401007]
[1753394351802,4.261,3729.6,3729.5,6.16401007]
[1753394352657,4.261,3729.6,3729.5,5.20821007]
[1753394352857,4.261,3729.6,3729.5,2.81572457]
[1753394353265,4.261,3729.6,3729.5,3.29972457]
[1753394354460,4.261,3729.6,3729.5,2.81572457]
[1753394354661,4.26,3729.6,3729.5,2.81572457]
[1753394356007,4.256,3729.6,3729.5,3.79651718]
[1753394356209,4.256,3729.6,3729.5,3.33451718]
[1753394356510,4.256,3729.6,3729.5,2.81572457]
[1753394357813,4.254,3729.6,3729.5,2.81572457]
[1753394358806,4.25,3729.6,3729.5,2.81572457]
[1753394359521,4.25,3729.6,3729.5,0.1344]
[1753394359868,5.1746,3729.6,3729.5,0.1344]
[1753394361698,0.9266,3729.6,3729.5,0.1344]
[1753394361895,5.1746,3729.6,3729.5,0.1344]
[1753394362782,0.9266,3729.6,3729.5,0.1344]
[1753394362995,5.1716,3729.6,3729.5,0.1344]
[1753394363819,0.9266,3729.6,3729.5,0.1344]
[1753394364019,5.1696,3729.6,3729.5,0.1344]
[1753394364868,0.002,3729.6,3729.5,0.1344]
[1753394365100,4.242,3729.6,3729.5,2.81572457]
[1753394369907,0.002,3729.6,3729.5,2.81572457]
[1753394370207,4.242,3729.6,3729.5,2.81572457]
[1753394370387,0.002,3729.6,3729.5,2.81572457]
[1753394370708,4.242,3729.6,3729.5,2.81572457]
[1753394371014,0.002,3729.6,3729.5,2.81572457]
[1753394371317,4.242,3729.6,3729.5,8.8551412]
[1753394373501,4.242,3729.6,3729.5,9.3171412]
[1753394373890,4.242,3729.6,3729.5,8.8551412]
[1753394376034,0.002,3729.6,3729.5,8.8551412]
[1753394376331,4.242,3729.6,3729.5,8.8551412]
[1753394382138,0.002,3729.6,3729.5,8.8551412]
[1753394382310,4.241,3729.6,3729.5,8.8551412]
[1753394384236,0.002,3729.6,3729.5,8.8551412]
[1753394384535,4.241,3729.6,3729.5,8.8551412]
[1753394385344,0.002,3729.6,3729.5,8.8551412]
[1753394385639,4.241,3729.6,3729.5,8.8551412]
[1753394388412,5.1871,3729.6,3729.5,6.17381663]
[1753394388616,5.1871,3729.6,3729.5,8.8551412]
[1753394390435,5.1861,3729.6,3729.5,8.8551412]
[1753394392440,0.9481,3729.6,3729.5,8.8551412]
[1753394392629,5.1861,3729.6,3729.5,8.8551412]
[1753394394226,4.7294,3729.6,3729.5,8.8551412]
[1753394394632,5.1861,3729.6,3729.5,8.8551412]
[1753394396046,4.24,3729.6,3729.5,8.8551412]
[1753394396420,5.1861,3729.6,3729.5,8.8551412]
[1753394397458,0.9481,3729.6,3729.5,8.8551412]
[1753394397658,5.1851,3729.6,3729.5,8.8551412]
[1753394400560,2.09805518,3729.7,3729.5,11.85397718]
[1753394400762,2.09805518,3729.7,3729.6,6.4900652]
[1753394400964,0.002,3730.3,3729.6,6.03941663]
[1753394401139,0.4914,3730.3,3729.4,6.03941663]
[1753394401340,0.002,3730.3,3730.1,2.68084661]
[1753394401660,0.4914,3730.5,3729.4,0.68382166]
[1753394401661,0.4914,3730.5,3730.2,0.7905]
[1753394401963,1.346,3730.1,3727.8,0.001]
[1753394402163,3.47789985,3728.7,3727.9,2.68340794]
[1753394402340,5.033,3728.7,3728.2,6.04041663]
[1753394402531,5.9791,3728.7,3728.2,6.04041663]
[1753394402943,0.796,3728.7,3728.6,6.04041663]
[1753394403143,0.796,3729.5,3729.0,2.68167086]
[1753394403342,0.4567,3729.7,3728.7,2.68189985]
[1753394403343,2.7955283,3730.2,3729.9,2.68103702]
[1753394403542,2.7955283,3730.2,3730.1,6.03941663]
[1753394403834,3.4564089,3730.1,3728.5,2.68198703]
[1753394404032,0.55,3729.8,3728.6,0.001]
[1753394404231,3.44043105,3729.0,3728.6,0.001]
[1753394404459,6.93276951,3728.9,3728.6,0.001]
[1753394404658,3.98788759,3728.3,3727.8,0.001]
[1753394404835,2.68240343,3728.0,3727.8,0.001]
[1753394405035,3.43810343,3728.0,3727.8,0.001]
[1753394405342,4.38420343,3728.0,3727.8,0.001]
[1753394406866,5.5071,3728.0,3727.8,0.001]
[1753394407073,5.9638,3728.0,3727.8,0.001]
[1753394411154,8.64620343,3728.0,3727.8,0.001]
[1753394412173,8.78060343,3728.0,3727.8,0.001]
[1753394414773,2.68247538,3727.9,3727.8,0.001]
[1753394414963,3.49987538,3727.9,3727.8,0.001]
[1753394415160,4.44597538,3727.9,3727.8,0.001]
[1753394415361,4.44597538,3727.9,3727.6,0.001]
[1753394415362,3.5000193,3727.7,3727.6,0.001]
[1753394415563,7.7540193,3727.7,3727.6,0.001]
[1753394415741,8.8206193,3727.7,3727.6,0.001]
[1753394418661,9.3706193,3727.7,3727.6,0.001]
[1753394418861,9.3706193,3727.7,3727.5,0.001]
[1753394418862,4.05329127,3727.6,3727.5,0.001]
[1753394419048,4.05329127,3727.6,3727.2,0.001]
[1753394419049,3.23290719,3727.3,3727.2,0.001]
[1753394419254,8.27360719,3727.3,3727.2,0.001]
[1753394419445,9.34020719,3727.3,3727.2,0.001]
[1753394419876,7.03777918,3727.2,3727.1,1e-08]
[1753394420174,7.96997918,3727.2,3727.1,1e-08]
[1753394423374,12.21897918,3727.2,3727.1,1e-08]
[1753394424672,11.66897918,3727.2,3727.1,1e-08]
[1753394425067,8.66697918,3727.2,3727.1,1e-08]
[1753394425666,14.36367885,3727.2,3727.1,1e-08]
[1753394428896,13.86487885,3727.2,3727.1,1e-08]
[1753394429066,14.36367885,3727.2,3727.1,1e-08]
[1753394430325,14.36367885,3727.2,3725.4,0.001]
[1753394430326,2.68420346,3725.5,3725.4,0.001]
[1753394430547,7.47620346,3725.5,3725.4,0.001]
[1753394430803,12.18380346,3725.5,3725.4,0.001]
[1753394430989,14.18597259,3725.5,3725.4,0.001]
[1753394431369,9.39397259,3725.5,3725.4,0.001]
[1753394431572,13.64397259,3725.5,3725.4,0.001]
[1753394431832,14.19397259,3725.5,3725.4,0.001]
[1753394433481,8.46177259,3725.5,3725.4,0.001]
[1753394433879,9.25016913,3725.5,3725.4,0.001]
[1753394434179,12.86657259,3725.5,3725.4,0.001]
[1753394434571,13.41657259,3725.5,3725.4,0.001]
[1753394434813,14.20587259,3725.5,3725.4,0.001]
[1753394435308,14.77805346,3725.5,3725.4,0.001]
[1753394435918,14.77805346,3725.5,3725.4,1e-08]
[1753394436617,6.98777551,3725.4,3725.3,1e-08]
[1753394436825,7.91997551,3725.4,3725.3,1e-08]
[1753394437016,9.67472804,3725.4,3725.3,1e-08]
[1753394437820,10.24618097,3725.4,3725.3,1e-08]
[1753394440218,10.62838867,3725.4,3725.3,1e-08]
[1753394442639,10.62875351,3725.4,3725.3,1e-08]
[1753394442946,1.42968843,3726.2,3725.4,0.7818]
[1753394443165,2.32645907,3728.6,3726.2,1.61]
[1753394443449,0.39719396,3729.1,3729.0,2.68168409]
[1753394443650,0.39719396,3729.1,3728.3,1.28949349]
[1753394443651,5.10924759,3729.1,3728.9,0.28823216]
[1753394443810,0.39719396,3729.0,3728.6,0.02681971]
[1753394444145,0.39719396,3729.0,3728.6,3.4394323]
[1753394444346,0.39719396,3729.0,3728.6,0.7575]
[1753394444554,0.5258194,3728.9,3728.6,0.7575]
[1753394444709,2.6808652,3730.2,3728.6,0.7575]
[1753394444710,0.4334,3730.2,3728.6,0.7575]
[1753394444916,0.1344,3729.7,3729.1,0.1344]
[1753394445317,4.867,3729.6,3729.3,2.39461086]
[1753394445548,0.002,3730.5,3729.4,0.57451876]
[1753394445849,0.4612,3731.3,3729.7,7.47039806]
[1753394445850,0.1344,3730.3,3729.7,7.47039806]
[1753394446040,0.1344,3730.3,3730.0,3.35120924]
[1753394446237,6.986,3731.0,3730.1,0.57451876]
[1753394446552,0.1344,3730.6,3730.2,0.4334]
[1753394446712,4.867,3730.5,3730.1,2.52419945]
[1753394446920,4.867,3730.5,3730.3,0.4334]
[1753394447248,4.867,3730.5,3730.2,2.63840505]
[1753394447249,4.867,3730.5,3730.4,0.6820056]
[1753394447420,4.867,3730.5,3730.4,0.83100903]
[1753394447952,4.865,3730.5,3730.4,0.83100903]
[1753394448544,4.86,3730.5,3730.4,0.83100903]
[1753394448847,8.30809349,3730.5,3730.4,0.39760903]
[1753394449225,3.58249349,3730.5,3730.4,0.39760903]
[1753394449425,8.13840581,3730.5,3730.4,0.39673064]
[1753394449834,8.13840581,3730.5,3730.4,0.14900343]
[1753394451023,8.13840581,3730.5,3730.4,1.57557441]
[1753394451224,2.68067767,3730.4,3730.3,1.42657098]
[1753394451423,2.68089327,3730.1,3730.0,1.42657098]
[1753394451638,2.68089327,3730.1,3729.5,1.9039126]
[1753394451639,2.68123769,3729.7,3729.5,1.9039126]
[1753394451824,4.85,3729.6,3729.5,1.9039126]
[1753394452554,4.85,3729.6,3729.4,1.9039126]
[1753394452847,4.85,3729.6,3729.4,2.3373126]
[1753394453256,2.8154511,3729.9,3729.4,0.4334]
[1753394453459,4.847,3729.8,3729.4,0.4334]
[1753394453626,4.847,3729.8,3729.4,2.3373126]
[1753394454240,4.847,3729.8,3729.4,0.4334]
[1753394454241,7.52815919,3729.8,3729.4,0.4334]
[1753394454666,4.845,3729.7,3729.5,0.4334]
[1753394455663,4.843,3729.6,3729.5,0.4334]
[1753394456931,4.837,3729.6,3729.5,0.4334]
[1753394458629,2.815441,3729.9,3729.5,0.4334]
[1753394458853,4.837,3729.8,3729.5,1.85256148]
[1753394459773,0.1344,3729.9,3729.5,1.85256148]
[1753394459934,4.824,3729.8,3729.5,1.41916148]
[1753394460134,4.824,3729.8,3729.6,0.4337]
[1753394460356,4.824,3729.8,3729.5,1.41916148]
[1753394460553,2.680827,3730.2,3729.6,0.4337]
[1753394460760,4.9554,3730.1,3729.6,0.5681]
[1753394460989,4.819,3730.0,3729.7,0.4337]
[1753394461292,4.822,3729.9,3729.8,0.4337]
[1753394461634,4.822,3729.9,3729.8,0.5681]
[1753394462148,4.822,3729.9,3729.8,0.1344]
[1753394462351,4.822,3729.9,3729.5,1.41916148]
[1753394462578,4.822,3729.9,3729.6,0.1344]
[1753394463275,4.822,3729.9,3729.7,0.14764659]
[1753394463574,4.822,3729.9,3729.8,0.14764659]
[1753394464569,4.817,3729.9,3729.8,0.58134659]
[1753394464767,4.817,3729.9,3729.8,0.71574659]
[1753394465147,4.817,3729.9,3729.8,2.13490807]
[1753394465671,0.1344,3730.4,3729.8,0.71574659]
[1753394465880,4.817,3730.3,3729.9,0.14764659]
[1753394466042,2.68080008,3730.3,3730.0,0.14764659]
[1753394466241,4.811,3730.2,3730.1,0.14764659]
[1753394466861,0.6986,3730.9,3730.2,0.7532]
[1753394467062,0.6986,3730.9,3730.3,0.14764659]
[1753394467262,4.808,3730.8,3730.4,1.70120807]
[1753394467578,4.808,3730.8,3730.5,0.14764659]
[1753394467777,4.808,3730.8,3730.6,0.14764659]
[1753394467962,4.808,3730.8,3730.4,0.5681]
[1753394467963,4.808,3730.8,3730.7,0.14764659]
[1753394468173,1.2311,3731.7,3730.7,0.14764659]
[1753394468489,4.803,3731.3,3730.8,0.14764659]
[1753394468786,4.803,3731.3,3731.0,0.1344]
[1753394469084,4.803,3731.3,3731.1,0.14809429]
[1753394469257,0.1336,3731.5,3731.2,0.97179429]
[1753394469458,2.67969464,3731.8,3731.3,1.57230814]
[1753394469689,5.92654331,3731.4,3731.3,0.58179429]
[1753394470295,1.02898742,3731.4,3731.3,0.58179429]
[1753394470496,4.793,3731.4,3731.3,0.58179429]
[1753394470669,4.793,3731.4,3731.3,2.48570689]
[1753394471255,2.68162042,3731.9,3731.3,0.58179429]
[1753394471604,4.789,3731.8,3731.6,1.90560641]
[1753394471910,0.002,3731.9,3731.7,0.14875004]
[1753394472124,0.002,3731.9,3731.8,0.14875004]
[1753394472612,4.784,3731.9,3731.8,0.14875004]
[1753394472959,7.4636002,3731.9,3731.8,0.14875004]
[1753394473210,7.4596002,3731.9,3731.8,0.14875004]
[1753394473390,7.4596002,3731.9,3731.8,0.14957514]
[1753394473661,4.78,3731.9,3731.8,0.14957514]
[1753394473873,0.002,3732.0,3731.8,0.14957514]
[1753394474156,0.002,3732.0,3731.9,0.14957514]
[1753394474392,4.78,3732.0,3731.9,0.14957514]
[1753394474600,7.4595284,3732.0,3731.9,0.14957514]
[1753394475173,7.4595284,3732.0,3731.9,2.05518155]
[1753394475607,7.4595284,3732.0,3731.9,0.14957514]
[1753394475767,7.25843748,3732.0,3731.9,0.14957514]
[1753394477665,8.70792066,3732.0,3731.9,0.14957514]
[1753394478183,13.50272066,3732.0,3731.9,1e-08]
[1753394478390,2.68053396,3730.6,3730.5,0.1344]
[1753394478600,7.44953396,3730.6,3730.5,0.1344]
[1753394478803,4.769,3730.6,3730.5,0.1344]
[1753394479207,2.68040447,3730.8,3730.5,0.1344]
[1753394479501,4.767,3730.7,3730.5,0.1344]
[1753394479703,4.767,3730.6,3730.3,0.7868]
[1753394479906,4.767,3730.6,3730.5,0.1344]
[1753394481296,4.76,3730.6,3730.5,0.1344]
[1753394482309,4.76,3730.6,3730.5,3.24870581]
[1753394482872,4.76,3730.6,3730.5,0.5681]
[1753394483094,4.76,3730.6,3730.5,0.1344]
[1753394483702,8.37223396,3730.6,3730.3,0.7868]
[1753394483898,8.37223396,3730.6,3729.9,0.1344]
[1753394483899,0.5901,3730.5,3729.9,0.1344]
[1753394484115,0.4557,3730.4,3729.9,0.1344]
[1753394484283,5.38086,3730.3,3729.9,0.1344]
[1753394484601,0.4557,3730.2,3729.9,0.1344]
[1753394484812,5.38086,3730.3,3729.9,0.1344]
[1753394484813,0.4557,3730.1,3729.9,0.1344]
[1753394485169,4.749,3730.0,3729.9,0.1344]
[1753394487017,0.62886,3730.3,3729.9,0.1344]
[1753394487312,4.748,3730.2,3729.9,0.1344]
[1753394488314,0.4557,3730.1,3729.9,0.1344]
[1753394489806,5.344696,3730.2,3729.9,0.1344]
[1753394492311,5.344696,3730.2,3729.9,0.1354]
[1753394493010,5.800396,3730.2,3729.9,0.1354]
[1753394493314,5.344696,3730.2,3729.9,0.1354]
[1753394493716,5.344696,3730.2,3729.9,2.81643131]
[1753394494216,4.748,3730.2,3729.9,2.81643131]
[1753394494577,4.748,3730.2,3729.9,0.1354]
[1753394496222,4.748,3730.2,3729.9,2.81643154]
[1753394496514,4.748,3730.2,3729.9,0.1354]
[1753394496899,4.748,3730.2,3729.9,2.81642973]
[1753394497409,4.748,3730.2,3729.9,0.1354]
[1753394497799,4.748,3730.2,3729.9,2.81637551]
[1753394498228,0.1344,3730.5,3729.9,0.1354]
[1753394498407,4.71,3730.4,3730.2,2.68078793]
[1753394498613,0.471,3730.4,3730.3,2.81514953]
[1753394498809,4.712,3730.4,3730.3,2.81514953]
[1753394499215,4.712,3730.4,3730.3,0.1344]
[1753394501024,4.712,3730.4,3729.9,2.68201883]
[1753394501025,5.1677,3730.4,3730.2,0.1344]
[1753394501219,0.4557,3730.3,3729.9,0.001]
[1753394501419,0.97247,3730.3,3729.9,0.1354]
[1753394501727,0.4557,3730.2,3729.9,0.1354]
[1753394502998,0.51677,3730.3,3729.9,0.1354]
[1753394503221,0.4557,3730.1,3729.9,0.1354]
[1753394503422,0.51677,3730.3,3729.9,0.1354]
[1753394503730,4.705,3730.1,3729.9,0.1354]
[1753394505228,4.697,3730.1,3729.9,0.1354]
[1753394505429,4.697,3730.1,3730.0,2.68096514]
[1753394507430,4.688,3730.4,3730.0,2.68096514]
[1753394507729,4.688,3730.4,3730.2,0.1344]
[1753394516927,0.4437,3730.8,3730.2,0.1344]
[1753394517237,0.4437,3730.8,3730.4,2.6806293]
[1753394517422,3.0,3731.2,3730.4,2.6806293]
[1753394517423,0.4437,3731.1,3730.6,0.1344]
[1753394517622,5.76961366,3731.0,3730.6,0.1344]
[1753394518029,5.76961366,3731.0,3730.6,2.81492115]
[1753394519320,5.76961366,3731.0,3730.6,0.1344]
[1753394519911,0.68891366,3731.0,3730.6,0.1344]
[1753394520112,5.0727,3730.9,3730.6,0.1344]
[1753394521342,0.4437,3730.9,3730.6,0.1344]
[1753394521645,4.62,3730.8,3730.6,0.1344]
[1753394522737,0.5781,3731.2,3730.6,0.1344]
[1753394523053,4.618,3731.1,3730.8,0.1344]
[1753394523353,0.4437,3731.0,3730.8,0.1344]
[1753394536039,0.4673,3730.9,3730.8,0.1344]
[1753394537643,0.4673,3730.9,3730.6,0.001]
[1753394537846,4.555,3730.8,3730.6,0.1354]
[1753394538097,3.64566211,3730.7,3730.6,0.001]
[1753394538397,3.78006211,3730.7,3730.6,0.001]
[1753394541447,2.68089327,3730.1,3730.0,0.001]
[1753394541655,2.68089327,3730.1,3729.9,0.001]
[1753394541656,5.68096514,3730.0,3729.9,0.001]
[1753394541887,2.68125268,3729.6,3729.5,0.001]
[1753394542054,2.68146837,3729.3,3729.1,0.001]
[1753394542381,7.36386837,3729.3,3729.1,0.001]
[1753394542549,8.32906837,3729.3,3729.1,0.001]
[1753394543078,4.6814,3729.3,3729.1,0.001]
[1753394543312,2.68076421,3730.3,3729.1,0.001]
[1753394543479,1.73277642,3730.2,3729.4,6.03699179]
[1753394543683,0.4979,3730.6,3730.0,0.1344]
[1753394543684,0.1344,3730.6,3730.0,0.1344]
[1753394543866,4.546,3730.5,3730.3,0.1344]
[1753394544066,4.546,3730.5,3730.3,2.81508794]
[1753394544381,4.546,3730.5,3730.4,0.1344]
[1753394545289,5.51463,3730.5,3730.4,0.1344]
[1753394545456,3.47109716,3730.4,3729.7,0.1344]
[1753394545651,1.2577,3730.4,3729.2,0.001]
[1753394545859,2.68125268,3729.6,3729.2,0.001]
[1753394546059,4.546,3729.5,3729.2,0.001]
[1753394546358,5.0133,3729.5,3729.2,0.001]
[1753394546561,4.546,3729.5,3729.2,0.001]
[1753394546890,0.4673,3729.4,3729.2,0.001]
[1753394547090,4.545,3729.5,3729.3,6.03699179]
[1753394547282,4.545,3729.5,3729.4,0.1344]
[1753394550301,5.0123,3729.5,3729.4,0.1344]
[1753394550473,6.01143,3729.5,3729.2,0.001]
[1753394550810,2.81586837,3729.3,3729.2,0.001]
[1753394551308,3.78106837,3729.3,3729.2,0.001]
[1753394551807,1.0996,3729.3,3729.2,0.001]
[1753394552105,2.32723062,3729.3,3729.2,0.001]
[1753394553098,5.00869899,3729.3,3729.2,0.001]
[1753394553310,2.32723062,3729.3,3729.2,0.001]
[1753394554081,6.85523062,3729.3,3729.2,0.001]
[1753394554693,9.53669899,3729.3,3729.2,0.001]
[1753394555501,10.33179899,3729.3,3729.2,0.001]
[1753394555679,13.88179899,3729.3,3729.2,0.001]
[1753394555884,13.88179899,3729.3,3729.1,1e-08]
[1753394555885,3.23154027,3729.2,3729.1,1e-08]
[1753394556080,7.01332793,3728.8,3728.7,0.001]
[1753394556284,11.66872793,3728.8,3728.7,0.001]
[1753394556529,12.63392793,3728.8,3728.7,0.001]
[1753394556681,7.56292793,3728.8,3728.7,0.001]
[1753394557015,12.08292793,3728.8,3728.7,0.001]
[1753394557223,12.58425793,3728.8,3728.7,0.001]
[1753394558684,12.58525793,3728.8,3728.7,0.001]
[1753394558922,12.08735793,3728.8,3728.7,0.001]
[1753394559222,13.13525793,3728.8,3728.7,0.001]
[1753394560641,8.61425793,3728.8,3728.7,0.001]
[1753394560810,13.12325793,3728.8,3728.7,0.001]
[1753394561735,2.68197178,3728.6,3728.5,0.001]
[1753394561935,10.69020178,3728.6,3728.5,0.001]
[1753394562232,11.78980178,3728.6,3728.5,0.001]
[1753394563431,4.10293,3728.6,3728.5,0.001]
[1753394563629,11.28790178,3728.6,3728.5,0.001]
[1753394563820,8.60593,3728.6,3728.5,0.001]
[1753394564021,5.59893,3728.6,3728.5,0.001]
[1753394564639,8.28090178,3728.6,3728.5,0.001]
[1753394565495,5.59893,3728.6,3728.5,0.001]
[1753394566521,8.28090178,3728.6,3728.5,0.001]
[1753394568035,13.04940178,3728.6,3728.5,0.001]
[1753394568220,6.23204371,3728.5,3728.4,0.001]
[1753394568420,9.47996695,3728.5,3728.4,0.001]
[1753394572618,8.92996695,3728.5,3728.4,0.001]
[1753394572814,13.39796695,3728.5,3728.4,0.001]
[1753394574135,12.93216695,3728.5,3728.4,0.001]
[1753394577230,8.46416695,3728.5,3728.4,0.001]
[1753394577411,12.92216695,3728.5,3728.4,0.001]
[1753394580353,13.38796695,3728.5,3728.4,0.001]
[1753394581654,11.71316695,3728.5,3728.4,0.001]
[1753394582018,12.16946695,3728.5,3728.4,0.001]
[1753394582725,11.71316695,3728.5,3728.4,0.001]
[1753394583055,9.03112324,3728.5,3728.4,0.001]
[1753394583252,0.002,3728.7,3728.4,7.29624651]
[1753394583456,4.438,3728.6,3728.4,6.86154651]
[1753394583663,4.438,3728.6,3728.5,3.58124371]
[1753394583822,4.438,3728.6,3728.5,4.89384832]
[1753394584025,0.002,3728.7,3728.6,3.47897178]
[1753394584218,0.002,3728.7,3728.6,7.37817178]
[1753394586548,0.002,3728.7,3728.6,3.91367178]
[1753394586723,0.002,3728.7,3728.6,0.797]
[1753394586923,0.002,3728.7,3728.6,3.47897178]
[1753394587153,0.002,3728.7,3728.6,3.91367178]
[1753394587327,0.002,3728.7,3728.6,5.17777486]
[1753394587642,0.002,3728.7,3728.6,8.66909457]
[1753394587846,0.002,3728.7,3728.6,8.64227486]
[1753394590963,0.002,3729.5,3728.6,15.23552137]
[1753394591162,0.002,3729.5,3729.4,9.54864298]
[1753394591464,0.002,3729.5,3729.1,2.68159859]
[1753394592161,0.002,3729.5,3729.4,2.68139647]
[1753394592347,0.002,3729.5,3729.4,8.64042104]
[1753394592664,0.002,3729.5,3729.4,13.06280708]
[1753394592862,0.002,3729.5,3729.4,15.07964182]
[1753394593404,0.002,3729.5,3729.4,15.21404182]
[1753394593550,0.1344,3730.8,3729.4,15.21404182]
[1753394593551,1.2905,3731.9,3730.8,0.8169]
[1753394593755,0.002,3731.9,3731.8,2.679672]
[1753394593965,0.002,3731.9,3731.7,5.17591061]
[1753394594262,0.002,3731.9,3731.8,0.1336]
[1753394594866,0.8236,3731.8,3730.6,5.2141]
[1753394595069,0.1356,3731.9,3731.2,5.31031061]
[1753394595364,0.002,3731.9,3731.6,0.1336]
[1753394595526,0.002,3731.9,3731.1,0.7901]
[1753394595726,0.002,3731.9,3731.6,0.4347]
[1753394595927,2.6816002,3731.9,3731.8,0.1336]
[1753394596127,0.002,3731.9,3731.5,0.1336]
[1753394596337,0.002,3731.9,3731.8,3.444072]
[1753394596565,0.002,3731.9,3731.8,0.898]
[1753394597067,0.002,3731.9,3731.8,4.8382085]
[1753394597283,0.002,3731.9,3731.8,5.71061178]
[1753394597465,0.002,3731.9,3731.8,4.81141178]
[1753394597974,0.002,3731.9,3731.8,10.1604085]
[1753394598179,0.002,3731.9,3731.8,0.7644]